[Event "Titled Tuesday Blitz December 13 Late 2022"]
[White "Kupervaser, Erez"]
[Black "Bluebaum, Matthias"]
[WhiteFideId "2814587"]
[BlackFideId "24651516"]
[WhiteElo "2251"]
[BlackElo "2634"]
[Result "0-1"]
[Round "01"]
[TimeControl "180+1"]
[Date "2022.12.13"]
[WhiteClock "0:00:07"]
[BlackClock "0:00:17"]

1. e4 {[%clk 0:03:00]}  e6 {[%clk 0:02:59]} 2. d4 {[%clk 0:02:56]}  d5 {[%clk 0:02:59]} 3. Nc3 {[%clk 0:02:54]}  Nf6 {[%clk 0:02:59]} 4. e5 {[%clk 0:02:54]}  Nfd7 {[%clk 0:02:59]} 5. f4 {[%clk 0:02:55]}  c5 {[%clk 0:03:00]} 6. Nf3 {[%clk 0:02:55]}  Nc6 {[%clk 0:03:01]} 7. Be3 {[%clk 0:02:56]}  a6 {[%clk 0:03:02]} 8. Qd2 {[%clk 0:02:54]}  b5 {[%clk 0:03:02]} 9. Ne2 {[%clk 0:02:54]}  b4 {[%clk 0:02:59]} 10. c3 {[%clk 0:02:45]}  a5 {[%clk 0:02:55]} 11. g3 {[%clk 0:02:42]}  Ba6 {[%clk 0:02:54]} 12. Bh3 {[%clk 0:02:40]}  bxc3 {[%clk 0:02:52]} 13. bxc3 {[%clk 0:02:37]}  cxd4 {[%clk 0:02:52]} 14. Nexd4 {[%clk 0:02:36]}  Nxd4 {[%clk 0:02:51]} 15. Nxd4 {[%clk 0:02:32]}  Nc5 {[%clk 0:02:51]} 16. Bf1 {[%clk 0:02:12]}  Qc8 {[%clk 0:02:35]} 17. Bxa6 {[%clk 0:02:03]}  Qxa6 {[%clk 0:02:36]} 18. Qe2 {[%clk 0:02:02]}  Be7 {[%clk 0:02:27]} 19. Qxa6 {[%clk 0:01:58]}  Rxa6 {[%clk 0:02:28]} 20. Ke2 {[%clk 0:01:58]}  O-O {[%clk 0:02:27]} 21. Rab1 {[%clk 0:01:54]}  Rc8 {[%clk 0:02:25]} 22. Rhc1 {[%clk 0:01:46]}  g6 {[%clk 0:02:23]} 23. Rb5 {[%clk 0:01:40]}  Ne4 {[%clk 0:02:16]} 24. Kd3 {[%clk 0:01:33]}  a4 {[%clk 0:02:08]} 25. c4 {[%clk 0:01:26]}  Nc5+ {[%clk 0:01:39]} 26. Ke2 {[%clk 0:01:25]}  Raa8 {[%clk 0:01:14]} 27. cxd5 {[%clk 0:01:25]}  exd5 {[%clk 0:01:15]} 28. Nf3 {[%clk 0:01:17]}  Ne4 {[%clk 0:01:12]} 29. Kd3 {[%clk 0:00:40]}  Rxc1 {[%clk 0:01:12]} 30. Bxc1 {[%clk 0:00:41]}  Rc8 {[%clk 0:01:12]} 31. Bb2 {[%clk 0:00:36]}  Nf2+ {[%clk 0:01:09]} 32. Kd2 {[%clk 0:00:19]}  a3 {[%clk 0:01:01]} 33. Bd4 {[%clk 0:00:19]}  Ne4+ {[%clk 0:00:55]} 34. Kd3 {[%clk 0:00:20]}  Bc5 {[%clk 0:00:54]} 35. Bxc5 {[%clk 0:00:19]}  Nxc5+ {[%clk 0:00:55]} 36. Kd4 {[%clk 0:00:18]}  Ne4 {[%clk 0:00:47]} 37. Ra5 {[%clk 0:00:17]}  Nc3 {[%clk 0:00:47]} 38. Nd2 {[%clk 0:00:13]}  Nxa2 {[%clk 0:00:44]} 39. Rxa3 {[%clk 0:00:12]}  Nb4 {[%clk 0:00:45]} 40. Rc3 {[%clk 0:00:10]}  Nc6+ {[%clk 0:00:40]} 41. Kd3 {[%clk 0:00:08]}  Nb4+ {[%clk 0:00:26]} 42. Kd4 {[%clk 0:00:08]}  Ra8 {[%clk 0:00:27]} 43. Nf3 {[%clk 0:00:08]}  Ra4 {[%clk 0:00:25]} 44. Kc5 {[%clk 0:00:07]}  Kg7 {[%clk 0:00:22]} 45. Rb3 {[%clk 0:00:07]}  Nc2 {[%clk 0:00:21]} 46. Rb7 {[%clk 0:00:06]}  Rc4+ {[%clk 0:00:20]} 47. Kxd5 {[%clk 0:00:06]}  Ne3+ {[%clk 0:00:20]} 48. Kd6 {[%clk 0:00:06]}  Nf5+ {[%clk 0:00:21]} 49. Kd5 {[%clk 0:00:06]}  Ne3+ {[%clk 0:00:21]} 50. Kd6 {[%clk 0:00:07]}  h6 {[%clk 0:00:22]} 51. Nd4 {[%clk 0:00:07]}  Rxd4+ {[%clk 0:00:22]} 52. Kc5 {[%clk 0:00:06]}  Rd2 {[%clk 0:00:22]} 53. e6 {[%clk 0:00:07]}  Rc2+ {[%clk 0:00:16]} 54. Kd4 {[%clk 0:00:06]}  Nf5+ {[%clk 0:00:16]} 55. Ke5 {[%clk 0:00:07]}  Re2+ {[%clk 0:00:16]} 56. Kd5 {[%clk 0:00:07]}  Rxe6 {[%clk 0:00:17]} 0-1


[Site "https://www.chess.com"]

[Event "Titled Tuesday Blitz December 13 Late 2022"]
[White "Ladan, Nicholas"]
[Black "Jobava, Baadur"]
[WhiteFideId "30918855"]
[BlackFideId "13601520"]
[WhiteElo "2167"]
[BlackElo "2582"]
[Result "1/2-1/2"]
[Round "01"]
[TimeControl "180+1"]
[Date "2022.12.13"]
[WhiteClock "0:00:51"]
[BlackClock "0:00:45"]

1. d4 {[%clk 0:02:59]}  d5 {[%clk 0:02:57]} 2. c4 {[%clk 0:02:58]}  dxc4 {[%clk 0:02:58]} 3. Nf3 {[%clk 0:02:57]}  Nf6 {[%clk 0:02:58]} 4. e3 {[%clk 0:02:57]}  Bg4 {[%clk 0:02:59]} 5. Bxc4 {[%clk 0:02:56]}  e6 {[%clk 0:02:59]} 6. O-O {[%clk 0:02:54]}  Bd6 {[%clk 0:02:59]} 7. Nc3 {[%clk 0:02:49]}  Nc6 {[%clk 0:02:59]} 8. Be2 {[%clk 0:02:48]}  O-O {[%clk 0:02:58]} 9. Bd2 {[%clk 0:02:46]}  a6 {[%clk 0:02:57]} 10. Rc1 {[%clk 0:02:44]}  Qe8 {[%clk 0:02:56]} 11. Ng5 {[%clk 0:02:41]}  Bxe2 {[%clk 0:02:55]} 12. Qxe2 {[%clk 0:02:41]}  Rd8 {[%clk 0:02:52]} 13. Nge4 {[%clk 0:02:40]}  Nxe4 {[%clk 0:02:51]} 14. Nxe4 {[%clk 0:02:41]}  f5 {[%clk 0:02:51]} 15. Nxd6 {[%clk 0:02:37]}  Rxd6 {[%clk 0:02:52]} 16. Rc5 {[%clk 0:02:26]}  f4 {[%clk 0:02:51]} 17. Qc4 {[%clk 0:02:12]}  f3 {[%clk 0:02:48]} 18. Rg5 {[%clk 0:02:00]}  h6 {[%clk 0:02:46]} 19. Rg3 {[%clk 0:01:59]}  fxg2 {[%clk 0:02:47]} 20. Rxg2 {[%clk 0:01:59]}  Qh5 {[%clk 0:02:38]} 21. Bb4 {[%clk 0:01:53]}  Nxb4 {[%clk 0:02:29]} 22. Qxb4 {[%clk 0:01:54]}  Qb5 {[%clk 0:02:23]} 23. Qxb5 {[%clk 0:01:34]}  axb5 {[%clk 0:02:24]} 24. f4 {[%clk 0:01:34]}  c6 {[%clk 0:02:20]} 25. b3 {[%clk 0:01:30]}  Kf7 {[%clk 0:02:15]} 26. Kf2 {[%clk 0:01:28]}  Ra8 {[%clk 0:01:59]} 27. Kf3 {[%clk 0:01:27]}  Rd5 {[%clk 0:01:51]} 28. Rfg1 {[%clk 0:01:22]}  g5 {[%clk 0:01:50]} 29. fxg5 {[%clk 0:01:17]}  hxg5 {[%clk 0:01:50]} 30. Rxg5 {[%clk 0:01:05]}  Rxg5 {[%clk 0:01:51]} 31. Rxg5 {[%clk 0:01:06]}  Rxa2 {[%clk 0:01:52]} 32. Rg2 {[%clk 0:01:07]}  Ra1 {[%clk 0:01:46]} 33. h4 {[%clk 0:01:05]}  Rb1 {[%clk 0:01:36]} 34. h5 {[%clk 0:01:05]}  Rxb3 {[%clk 0:01:35]} 35. h6 {[%clk 0:01:05]}  Rb1 {[%clk 0:01:34]} 36. Rg7+ {[%clk 0:01:03]}  Kf6 {[%clk 0:01:34]} 37. Rxb7 {[%clk 0:01:04]}  Rh1 {[%clk 0:01:31]} 38. h7 {[%clk 0:01:03]}  Kg6 {[%clk 0:01:24]} 39. Rc7 {[%clk 0:01:00]}  Rxh7 {[%clk 0:01:23]} 40. Rxc6 {[%clk 0:01:01]}  Kf6 {[%clk 0:01:24]} 41. Rb6 {[%clk 0:01:00]}  Rh5 {[%clk 0:01:24]} 42. Ke4 {[%clk 0:00:57]}  Rh4+ {[%clk 0:01:22]} 43. Kd3 {[%clk 0:00:57]}  Rh5 {[%clk 0:01:22]} 44. e4 {[%clk 0:00:56]}  Rh3+ {[%clk 0:01:22]} 45. Kd2 {[%clk 0:00:56]}  Rh4 {[%clk 0:01:16]} 46. Ke3 {[%clk 0:00:56]}  Rh3+ {[%clk 0:01:16]} 47. Kf4 {[%clk 0:00:56]}  Rh4+ {[%clk 0:01:16]} 48. Kf3 {[%clk 0:00:57]}  Ke7 {[%clk 0:00:55]} 49. Rxb5 {[%clk 0:00:55]}  Rh3+ {[%clk 0:00:53]} 50. Kf4 {[%clk 0:00:54]}  Rh4+ {[%clk 0:00:53]} 51. Ke3 {[%clk 0:00:54]}  Rh3+ {[%clk 0:00:54]} 52. Ke2 {[%clk 0:00:53]}  Ra3 {[%clk 0:00:49]} 53. Rb4 {[%clk 0:00:51]}  Kf6 {[%clk 0:00:48]} 54. Rb5 {[%clk 0:00:51]}  Rh3 {[%clk 0:00:47]} 55. d5 {[%clk 0:00:48]}  exd5 {[%clk 0:00:46]} 56. Rxd5 {[%clk 0:00:49]}  Ke6 {[%clk 0:00:46]} 57. Rf5 {[%clk 0:00:49]}  Ra3 {[%clk 0:00:44]} 58. Rb5 {[%clk 0:00:49]}  Rh3 {[%clk 0:00:44]} 59. Kd2 {[%clk 0:00:48]}  Rg3 {[%clk 0:00:44]} 60. Rd5 {[%clk 0:00:49]}  Rh3 {[%clk 0:00:44]} 61. Rd3 {[%clk 0:00:49]}  Rxd3+ {[%clk 0:00:44]} 62. Kxd3 {[%clk 0:00:50]}  Ke5 {[%clk 0:00:44]} 63. Ke3 {[%clk 0:00:51]}  Ke6 {[%clk 0:00:44]} 64. e5 {[%clk 0:00:51]}  Kxe5 {[%clk 0:00:45]} 1/2-1/2


[Site "https://www.chess.com"]

[Event "Titled Tuesday Blitz December 13 Late 2022"]
[White "Lashkin, Jegor"]
[Black "Pein, Jonathan"]
[WhiteFideId "13907808"]
[BlackFideId "417092"]
[WhiteElo "2851"]
[BlackElo "2448"]
[Result "1/2-1/2"]
[Round "01"]
[TimeControl "180+1"]
[Date "2022.12.14"]
[WhiteClock "0:00:08"]
[BlackClock "0:00:14"]

1. Nf3 {[%clk 0:03:00]}  g6 {[%clk 0:02:59]} 2. g3 {[%clk 0:03:00]}  Bg7 {[%clk 0:02:59]} 3. Bg2 {[%clk 0:03:01]}  e5 {[%clk 0:03:00]} 4. O-O {[%clk 0:03:02]}  Ne7 {[%clk 0:03:00]} 5. e4 {[%clk 0:03:00]}  O-O {[%clk 0:02:59]} 6. d4 {[%clk 0:02:58]}  exd4 {[%clk 0:02:59]} 7. Nxd4 {[%clk 0:02:59]}  Nbc6 {[%clk 0:02:57]} 8. Be3 {[%clk 0:02:59]}  Re8 {[%clk 0:02:56]} 9. Nc3 {[%clk 0:02:59]}  d6 {[%clk 0:02:55]} 10. h3 {[%clk 0:02:57]}  f5 {[%clk 0:02:54]} 11. Qd2 {[%clk 0:02:52]}  fxe4 {[%clk 0:02:53]} 12. Nxe4 {[%clk 0:02:50]}  Nf5 {[%clk 0:02:39]} 13. Nxf5 {[%clk 0:02:50]}  Bxf5 {[%clk 0:02:38]} 14. Bg5 {[%clk 0:02:50]}  Qd7 {[%clk 0:02:34]} 15. Nf6+ {[%clk 0:02:48]}  Bxf6 {[%clk 0:02:33]} 16. Bxf6 {[%clk 0:02:49]}  Bxh3 {[%clk 0:02:30]} 17. Bd5+ {[%clk 0:02:44]}  Be6 {[%clk 0:02:29]} 18. Bh1 {[%clk 0:02:06]}  Qf7 {[%clk 0:02:20]} 19. Bc3 {[%clk 0:02:04]}  Ne5 {[%clk 0:01:29]} 20. f4 {[%clk 0:01:39]}  Nc6 {[%clk 0:01:00]} 21. Rae1 {[%clk 0:01:19]}  Qf5 {[%clk 0:00:48]} 22. Bxc6 {[%clk 0:01:06]}  bxc6 {[%clk 0:00:47]} 23. Qd4 {[%clk 0:01:07]}  Qc5 {[%clk 0:00:43]} 24. Qxc5 {[%clk 0:01:00]}  dxc5 {[%clk 0:00:44]} 25. a3 {[%clk 0:00:49]}  Bf5 {[%clk 0:00:24]} 26. Rc1 {[%clk 0:00:35]}  Re2 {[%clk 0:00:23]} 27. Rf2 {[%clk 0:00:33]}  Rxf2 {[%clk 0:00:18]} 28. Kxf2 {[%clk 0:00:34]}  Rd8 {[%clk 0:00:17]} 29. Ke3 {[%clk 0:00:32]}  Kf7 {[%clk 0:00:16]} 30. Be5 {[%clk 0:00:32]}  Rd7 {[%clk 0:00:14]} 31. Rh1 {[%clk 0:00:18]}  h5 {[%clk 0:00:14]} 32. Rh2 {[%clk 0:00:19]}  a6 {[%clk 0:00:14]} 33. Re2 {[%clk 0:00:12]}  Rd1 {[%clk 0:00:11]} 34. Bxc7 {[%clk 0:00:12]}  Rc1 {[%clk 0:00:11]} 35. c3 {[%clk 0:00:10]}  Rc2 {[%clk 0:00:12]} 36. Bb6 {[%clk 0:00:02]}  Ke6 {[%clk 0:00:05]} 37. Rxc2 {[%clk 0:00:01]}  Bxc2 {[%clk 0:00:05]} 38. Bxc5 {[%clk 0:00:02]}  Kd5 {[%clk 0:00:06]} 39. Bf8 {[%clk 0:00:02]}  a5 {[%clk 0:00:06]} 40. Kd2 {[%clk 0:00:02]}  Bb3 {[%clk 0:00:05]} 41. Be7 {[%clk 0:00:02]}  a4 {[%clk 0:00:06]} 42. Bd8 {[%clk 0:00:03]}  Ba2 {[%clk 0:00:06]} 43. Kd3 {[%clk 0:00:03]}  Bc4+ {[%clk 0:00:07]} 44. Ke3 {[%clk 0:00:03]}  Bb3 {[%clk 0:00:07]} 45. f5 {[%clk 0:00:04]}  gxf5 {[%clk 0:00:07]} 46. Kf4 {[%clk 0:00:04]}  Ke6 {[%clk 0:00:07]} 47. Kg5 {[%clk 0:00:05]}  Bd1 {[%clk 0:00:07]} 48. Bb6 {[%clk 0:00:05]}  Bg4 {[%clk 0:00:08]} 49. Bd4 {[%clk 0:00:05]}  Kd5 {[%clk 0:00:09]} 50. Kf4 {[%clk 0:00:05]}  Kc4 {[%clk 0:00:09]} 51. Bf6 {[%clk 0:00:05]}  Kb3 {[%clk 0:00:10]} 52. c4 {[%clk 0:00:06]}  Kxc4 {[%clk 0:00:10]} 53. Ke3 {[%clk 0:00:06]}  Kd5 {[%clk 0:00:10]} 54. Bc3 {[%clk 0:00:06]}  Kc4 {[%clk 0:00:11]} 55. Be5 {[%clk 0:00:07]}  c5 {[%clk 0:00:12]} 56. Bc3 {[%clk 0:00:07]}  Kd5 {[%clk 0:00:12]} 57. Kf4 {[%clk 0:00:07]}  Kc4 {[%clk 0:00:13]} 58. Bf6 {[%clk 0:00:08]}  Kd5 {[%clk 0:00:14]} 59. Bc3 {[%clk 0:00:08]}  Kc4 {[%clk 0:00:14]} 60. Bf6 {[%clk 0:00:09]}  Kd5 {[%clk 0:00:14]} 61. Bc3 {[%clk 0:00:08]} 1/2-1/2


[Site "https://www.chess.com"]

[Event "Titled Tuesday Blitz December 13 Late 2022"]
[White "Martinez Ramirez, Lennis"]
[Black "Eisa Mohmood, Alkhoori"]
[WhiteFideId "3509079"]
[BlackFideId "9316116"]
[WhiteElo "2439"]
[BlackElo "1245"]
[Result "1-0"]
[Round "01"]
[TimeControl "180+1"]
[Date "2022.12.14"]
[WhiteClock "0:00:35"]
[BlackClock "0:00:11"]

1. c4 {[%clk 0:02:53]}  Nf6 {[%clk 0:02:59]} 2. Nf3 {[%clk 0:02:53]}  g6 {[%clk 0:02:59]} 3. Nc3 {[%clk 0:02:54]}  d5 {[%clk 0:03:00]} 4. cxd5 {[%clk 0:02:53]}  Nxd5 {[%clk 0:03:01]} 5. h4 {[%clk 0:02:53]}  Bg7 {[%clk 0:02:57]} 6. h5 {[%clk 0:02:52]}  c5 {[%clk 0:02:56]} 7. d4 {[%clk 0:02:44]}  Nc6 {[%clk 0:02:49]} 8. e3 {[%clk 0:02:34]}  cxd4 {[%clk 0:02:40]} 9. exd4 {[%clk 0:02:32]}  O-O {[%clk 0:02:40]} 10. hxg6 {[%clk 0:02:25]}  hxg6 {[%clk 0:02:37]} 11. Bh6 {[%clk 0:02:21]}  Bxh6 {[%clk 0:02:34]} 12. Rxh6 {[%clk 0:02:22]}  Kg7 {[%clk 0:02:34]} 13. Qd2 {[%clk 0:02:15]}  Bg4 {[%clk 0:02:14]} 14. Rh4 {[%clk 0:02:13]}  Bxf3 {[%clk 0:01:42]} 15. Qh6+ {[%clk 0:02:10]}  Kf6 {[%clk 0:01:43]} 16. gxf3 {[%clk 0:02:10]}  Rh8 {[%clk 0:01:23]} 17. Qxh8+ {[%clk 0:02:08]}  Qxh8 {[%clk 0:01:18]} 18. Rxh8 {[%clk 0:02:08]}  Rxh8 {[%clk 0:01:16]} 19. Nxd5+ {[%clk 0:02:09]}  Ke6 {[%clk 0:01:16]} 20. Ne3 {[%clk 0:01:49]}  Nxd4 {[%clk 0:01:16]} 21. O-O-O {[%clk 0:01:50]}  Nxf3 {[%clk 0:01:05]} 22. Bg2 {[%clk 0:01:49]}  Rc8+ {[%clk 0:00:53]} 23. Kb1 {[%clk 0:01:46]}  Ne5 {[%clk 0:00:49]} 24. Bxb7 {[%clk 0:01:39]}  Rc5 {[%clk 0:00:48]} 25. a3 {[%clk 0:01:34]}  a5 {[%clk 0:00:47]} 26. Rd5 {[%clk 0:01:28]}  Rc7 {[%clk 0:00:44]} 27. Rb5 {[%clk 0:01:26]}  Nd3 {[%clk 0:00:42]} 28. Bd5+ {[%clk 0:01:25]}  Kf6 {[%clk 0:00:38]} 29. Ng4+ {[%clk 0:01:21]}  Kg7 {[%clk 0:00:33]} 30. Rxa5 {[%clk 0:01:18]}  Rc1+ {[%clk 0:00:33]} 31. Ka2 {[%clk 0:01:18]}  Rg1 {[%clk 0:00:33]} 32. Ra4 {[%clk 0:00:54]}  Nc1+ {[%clk 0:00:33]} 33. Kb1 {[%clk 0:00:54]}  Nb3+ {[%clk 0:00:16]} 34. Kc2 {[%clk 0:00:54]}  Na1+ {[%clk 0:00:10]} 35. Kd2 {[%clk 0:00:53]}  e6 {[%clk 0:00:10]} 36. Bf3 {[%clk 0:00:43]}  Nb3+ {[%clk 0:00:10]} 37. Ke3 {[%clk 0:00:41]}  g5 {[%clk 0:00:08]} 38. Rc4 {[%clk 0:00:38]}  Re1+ {[%clk 0:00:08]} 39. Kd3 {[%clk 0:00:35]}  f5 {[%clk 0:00:08]} 40. Ne3 {[%clk 0:00:34]}  g4 {[%clk 0:00:06]} 41. Bd1 {[%clk 0:00:33]}  Rg1 {[%clk 0:00:03]} 42. Bxb3 {[%clk 0:00:32]}  g3 {[%clk 0:00:01]} 43. fxg3 {[%clk 0:00:32]}  Rxg3 {[%clk 0:00:02]} 44. Rc7+ {[%clk 0:00:32]}  Kf6 {[%clk 0:00:02]} 45. Rc6 {[%clk 0:00:32]}  f4 {[%clk 0:00:03]} 46. Rxe6+ {[%clk 0:00:33]}  Kf7 {[%clk 0:00:02]} 47. Re4+ {[%clk 0:00:33]}  Kf8 {[%clk 0:00:01]} 48. Rxf4+ {[%clk 0:00:34]}  Ke7 {[%clk 0:00:02]} 49. Re4+ {[%clk 0:00:34]}  Kd6 {[%clk 0:00:02]} 50. Kd4 {[%clk 0:00:34]}  Rxe3 {[%clk 0:00:03]} 51. Rxe3 {[%clk 0:00:34]}  Kc6 {[%clk 0:00:04]} 52. Re6+ {[%clk 0:00:34]}  Kd7 {[%clk 0:00:04]} 53. Bd5 {[%clk 0:00:34]}  Kc8 {[%clk 0:00:05]} 54. b4 {[%clk 0:00:34]}  Kd7 {[%clk 0:00:06]} 55. a4 {[%clk 0:00:35]}  Kc8 {[%clk 0:00:07]} 56. a5 {[%clk 0:00:35]}  Kd7 {[%clk 0:00:08]} 57. b5 {[%clk 0:00:35]}  Kc7 {[%clk 0:00:09]} 58. b6+ {[%clk 0:00:36]}  Kd7 {[%clk 0:00:09]} 59. a6 {[%clk 0:00:36]}  Kc8 {[%clk 0:00:10]} 60. Re7 {[%clk 0:00:36]}  Kd8 {[%clk 0:00:10]} 61. a7 {[%clk 0:00:36]}  Kc8 {[%clk 0:00:11]} 62. b7+ {[%clk 0:00:36]}  Kd8 {[%clk 0:00:11]} 63. Rh7 {[%clk 0:00:35]} 1-0


[Site "https://www.chess.com"]

[Event "Titled Tuesday Blitz December 13 Late 2022"]
[White "Meduri, Aakaash"]
[Black "Rustemov, Alexander"]
[WhiteFideId "2032252"]
[BlackFideId "4119002"]
[WhiteElo "2425"]
[BlackElo "2771"]
[Result "1/2-1/2"]
[Round "01"]
[TimeControl "180+1"]
[Date "2022.12.14"]
[WhiteClock "0:00:05"]
[BlackClock "0:00:21"]

1. d4 {[%clk 0:02:55]}  d5 {[%clk 0:02:59]} 2. Bf4 {[%clk 0:02:54]}  Nf6 {[%clk 0:02:59]} 3. Nc3 {[%clk 0:02:54]}  c5 {[%clk 0:03:00]} 4. e3 {[%clk 0:02:51]}  a6 {[%clk 0:02:59]} 5. dxc5 {[%clk 0:02:47]}  Nc6 {[%clk 0:02:56]} 6. Nf3 {[%clk 0:02:45]}  Bg4 {[%clk 0:02:55]} 7. Be2 {[%clk 0:02:36]}  e6 {[%clk 0:02:55]} 8. Na4 {[%clk 0:02:31]}  Bxc5 {[%clk 0:02:53]} 9. Nxc5 {[%clk 0:02:30]}  Qa5+ {[%clk 0:02:53]} 10. c3 {[%clk 0:02:31]}  Qxc5 {[%clk 0:02:54]} 11. O-O {[%clk 0:02:31]}  O-O {[%clk 0:02:54]} 12. h3 {[%clk 0:02:31]}  Bh5 {[%clk 0:02:53]} 13. Qb3 {[%clk 0:02:16]}  Na5 {[%clk 0:02:48]} 14. Qb4 {[%clk 0:02:12]}  Qxb4 {[%clk 0:02:39]} 15. cxb4 {[%clk 0:02:13]}  Bxf3 {[%clk 0:02:39]} 16. gxf3 {[%clk 0:02:12]}  Nc4 {[%clk 0:02:33]} 17. b3 {[%clk 0:02:05]}  Na3 {[%clk 0:02:33]} 18. Rac1 {[%clk 0:02:03]}  Rfc8 {[%clk 0:02:32]} 19. Rfd1 {[%clk 0:01:54]}  Nb5 {[%clk 0:01:49]} 20. Rxc8+ {[%clk 0:01:48]}  Rxc8 {[%clk 0:01:48]} 21. Bd3 {[%clk 0:01:46]}  Kf8 {[%clk 0:01:23]} 22. a4 {[%clk 0:01:35]}  Na7 {[%clk 0:01:21]} 23. Bd6+ {[%clk 0:01:32]}  Ke8 {[%clk 0:01:21]} 24. Bc5 {[%clk 0:01:33]}  Ra8 {[%clk 0:01:15]} 25. Rc1 {[%clk 0:01:27]}  Kd7 {[%clk 0:01:15]} 26. Bb6 {[%clk 0:01:25]}  Rc8 {[%clk 0:01:10]} 27. Rxc8 {[%clk 0:01:23]}  Nxc8 {[%clk 0:01:11]} 28. Bd4 {[%clk 0:01:23]}  Nd6 {[%clk 0:01:10]} 29. Kf1 {[%clk 0:01:19]}  b5 {[%clk 0:01:08]} 30. Ke2 {[%clk 0:01:18]}  h6 {[%clk 0:01:06]} 31. Be5 {[%clk 0:01:08]}  Nfe8 {[%clk 0:01:06]} 32. Bd4 {[%clk 0:01:03]}  f6 {[%clk 0:01:06]} 33. Bc5 {[%clk 0:00:59]}  Kc6 {[%clk 0:01:06]} 34. Kd2 {[%clk 0:00:57]}  e5 {[%clk 0:01:05]} 35. f4 {[%clk 0:00:45]}  Nc7 {[%clk 0:01:01]} 36. fxe5 {[%clk 0:00:44]}  fxe5 {[%clk 0:01:01]} 37. f4 {[%clk 0:00:35]}  e4 {[%clk 0:00:55]} 38. Be2 {[%clk 0:00:31]}  g6 {[%clk 0:00:53]} 39. Kc3 {[%clk 0:00:30]}  Nf5 {[%clk 0:00:52]} 40. Kd2 {[%clk 0:00:25]}  Ne6 {[%clk 0:00:51]} 41. Ba7 {[%clk 0:00:24]}  d4 {[%clk 0:00:51]} 42. exd4 {[%clk 0:00:20]}  Nexd4 {[%clk 0:00:45]} 43. Bxd4 {[%clk 0:00:16]}  Nxd4 {[%clk 0:00:45]} 44. Bd1 {[%clk 0:00:17]}  Kd5 {[%clk 0:00:43]} 45. Ke3 {[%clk 0:00:16]}  Nf5+ {[%clk 0:00:42]} 46. Kd2 {[%clk 0:00:16]}  Kd4 {[%clk 0:00:39]} 47. Bc2 {[%clk 0:00:15]}  Ne7 {[%clk 0:00:35]} 48. Bd1 {[%clk 0:00:07]}  e3+ {[%clk 0:00:31]} 49. Ke1 {[%clk 0:00:06]}  Nd5 {[%clk 0:00:27]} 50. Be2 {[%clk 0:00:05]}  Nc3 {[%clk 0:00:27]} 51. axb5 {[%clk 0:00:05]}  axb5 {[%clk 0:00:27]} 52. Bf1 {[%clk 0:00:06]}  Ke4 {[%clk 0:00:26]} 53. Bg2+ {[%clk 0:00:04]}  Kxf4 {[%clk 0:00:26]} 54. Bc6 {[%clk 0:00:05]}  Kg3 {[%clk 0:00:24]} 55. Bd7 {[%clk 0:00:05]}  g5 {[%clk 0:00:24]} 56. Be6 {[%clk 0:00:05]}  h5 {[%clk 0:00:25]} 57. Bd7 {[%clk 0:00:05]}  g4 {[%clk 0:00:23]} 58. hxg4 {[%clk 0:00:05]}  hxg4 {[%clk 0:00:23]} 59. Be6 {[%clk 0:00:05]}  Kf3 {[%clk 0:00:23]} 60. Bd7 {[%clk 0:00:04]}  g3 {[%clk 0:00:21]} 61. Bh3 {[%clk 0:00:05]}  g2 {[%clk 0:00:20]} 62. Bxg2+ {[%clk 0:00:05]}  Kxg2 {[%clk 0:00:21]} 1/2-1/2


[Site "https://www.chess.com"]

[Event "Titled Tuesday Blitz December 13 Late 2022"]
[White "Mendez Fortes, Eduardo Jesus"]
[Black "De VJunior, Liduino Furtado"]
[WhiteFideId "3502376"]
[BlackFideId "2109913"]
[WhiteElo "2307"]
[BlackElo "2050"]
[Result "1-0"]
[Round "01"]
[TimeControl "180+1"]
[Date "2022.12.14"]
[WhiteClock "0:01:57"]
[BlackClock "0:01:06"]

1. e4 {[%clk 0:03:00]}  e6 {[%clk 0:03:00]} 2. d4 {[%clk 0:03:00]}  d5 {[%clk 0:03:00]} 3. Nd2 {[%clk 0:03:01]}  dxe4 {[%clk 0:02:58]} 4. Nxe4 {[%clk 0:03:02]}  Bd7 {[%clk 0:02:58]} 5. Nf3 {[%clk 0:03:02]}  Bc6 {[%clk 0:02:57]} 6. Bd3 {[%clk 0:03:02]}  Nd7 {[%clk 0:02:57]} 7. Qe2 {[%clk 0:03:02]}  Ngf6 {[%clk 0:02:57]} 8. Ned2 {[%clk 0:03:03]}  Bd6 {[%clk 0:02:54]} 9. O-O {[%clk 0:03:02]}  Bxf3 {[%clk 0:02:53]} 10. Nxf3 {[%clk 0:03:00]}  c6 {[%clk 0:02:53]} 11. c3 {[%clk 0:03:00]}  Qc7 {[%clk 0:02:53]} 12. Re1 {[%clk 0:02:58]}  O-O {[%clk 0:02:52]} 13. Ne5 {[%clk 0:02:56]}  Rad8 {[%clk 0:02:30]} 14. h3 {[%clk 0:02:41]}  Bxe5 {[%clk 0:02:13]} 15. dxe5 {[%clk 0:02:41]}  Nd5 {[%clk 0:02:13]} 16. c4 {[%clk 0:02:32]}  Nb4 {[%clk 0:02:11]} 17. Be4 {[%clk 0:02:29]}  Nc5 {[%clk 0:02:07]} 18. Bg5 {[%clk 0:02:24]}  Rd4 {[%clk 0:01:56]} 19. Bb1 {[%clk 0:02:13]}  h6 {[%clk 0:01:53]} 20. Be3 {[%clk 0:02:10]}  Rfd8 {[%clk 0:01:44]} 21. Bxd4 {[%clk 0:02:10]}  Rxd4 {[%clk 0:01:44]} 22. a3 {[%clk 0:02:10]}  Nba6 {[%clk 0:01:34]} 23. b4 {[%clk 0:02:04]}  Nb3 {[%clk 0:01:33]} 24. Qe3 {[%clk 0:01:57]}  Nxa1 {[%clk 0:01:12]} 25. Qxd4 {[%clk 0:01:57]}  Nb3 {[%clk 0:01:12]} 26. Qd3 {[%clk 0:01:57]}  Nac5 {[%clk 0:01:11]} 27. bxc5 {[%clk 0:01:57]}  Nxc5 {[%clk 0:01:10]} 28. Qh7+ {[%clk 0:01:57]}  Kf8 {[%clk 0:01:09]} 29. Qh8+ {[%clk 0:01:58]}  Ke7 {[%clk 0:01:10]} 30. Qxg7 {[%clk 0:01:59]}  Nd7 {[%clk 0:01:06]} 31. Bg6 {[%clk 0:01:57]} 1-0


[Site "https://www.chess.com"]